[Event "EYCC Open-U14 2019"]
[Site "Bratislava"]
[Date "2019.08.03"]
[Round "2.14"]
[White "Poltorak, Sebastian"]
[Black "Tsaruk, Maksim"]
[Result "1/2-1/2"]
[ECO "E39"]
[WhiteElo "2068"]
[BlackElo "2230"]
[Annotator "NA"]
[PlyCount "87"]
[EventDate "2019.08.02"]
[EventType "swiss"]
[EventCountry "SVK"]
[SourceTitle "playchess.com"]
[Source "ChessBase"]
[SourceQuality "1"]
[TimeControl "40/5400+30:1800+30"]

1. d4 {[%emt 0:00:00]} Nf6 {[%emt 0:00:00]} 2. c4 {[%emt 0:00:00]} e6 {[%emt 0:00:00]} 3. Nc3 {[%emt 0:00:00]} Bb4 {[%emt 0:00:00]} 4. Qc2 {[%emt 0:00:02]} c5 {[%emt 0:00:03]} 5. dxc5 {[%emt 0:00:14]} O-O {[%emt 0:00:11]} 6. a3 {[%emt 0:00:26]} Bxc5 {[%emt 0:00:08]} 7. Nf3 {[%emt 0:00:28]} b6 {[%emt 0:00:46]} 8. Bg5 {[%emt 0:00:39]} Bb7 {[%emt 0:11:13]} 9. e3 {[%emt 0:01:21]} h6 {[%emt 0:04:34]} 10. Bh4 {[%emt 0:03:17]} Be7 {[%emt 0:01:24]} 11. Bd3 {[%emt 0:03:48]} Nc6 {[%emt 0:04:59]} 12. O-O {[%emt 0:04:25]} Rc8 {[%emt 0:00:45]} 13. Rfd1 {[%emt 0:07:40]} Nh5 {[%emt 0:20:33]} 14. Bxe7 {[%emt 0:00:52]} Qxe7 {[%emt 0:00:03]} 15. Qe2 {[%emt 0:11:13]} Rfd8 {[%emt 0:04:52]} 16. Rac1 {[%emt 0:07:33]} Nf6 {[%emt 0:07:29]} 17. Ne4 {[%emt 0:05:41]} d6 {[%emt 0:04:51]} 18. Nxf6+ {[%emt 0:06:54]} Qxf6 {[%emt 0:00:05]} 19. Be4 {[%emt 0:00:20]} Ba6 {[%emt 0:05:35]} 20. b4 {[%emt 0:06:54]} d5 {[%emt 0:07:08]} 21. Bd3 {[%emt 0:01:53]} dxc4 {[%emt 0:06:08]} 22. Bxc4 {[%emt 0:00:38]} Rxd1+ {[%emt 0:03:59]} 23. Rxd1 {[%emt 0:01:17]} Bxc4 {[%emt 0:05:12]} 24. Qxc4 {[%emt 0:00:08]} Rd8 {[%emt 0:00:18]} 25. Rxd8+ {[%emt 0:01:18]} Qxd8 {[%emt 0:00:07]} 26. h3 {[%emt 0:02:01]} Qd1+ {[%emt 0:02:01]} 27. Kh2 {[%emt 0:00:16]} Qd6+ {[%emt 0:03:55]} 28. g3 {[%emt 0:01:10]} a5 {[%emt 0:02:31]} 29. b5 {[%emt 0:04:17]} Ne7 {[%emt 0:00:03]} 30. a4 {[%emt 0:05:14]} Qd5 {[%emt 0:00:03]} 31. Qf4 {[%emt 0:04:12]} Ng6 {[%emt 0:03:57]} 32. Qb8+ {[%emt 0:00:07]} Kh7 {[%emt 0:00:01]} 33. Kg2 {[%emt 0:01:43]} f6 {[%emt 0:01:09]} 34. Qxb6 {[%emt 0:04:01]} Ne5 {[%emt 0:00:09]} 35. e4 {[%emt 0:00:07]} Qxe4 {[%emt 0:00:06]} 36. Qe3 {[%emt 0:00:05]} Qb7 {[%emt 0:00:20]} 37. g4 {[%emt 0:00:57]} Qd5 {[%emt 0:02:09]} 38. Kg3 {[%emt 0:01:13]} Nd3 {[%emt 0:01:40]} 39. Qd4 {[%emt 0:01:22]} Qb3 {[%emt 0:00:17]} 40. Qe4+ {[%emt 0:00:00]} Kh8 {[%emt 0:00:00]} 41. Qa8+ {[%emt 0:11:46]} Kh7 {[%emt 0:00:35]} 42. Qe4+ {[%emt 0:00:30]} Kh8 {[%emt 0:00:06]} 43. Qa8+ {[%emt 0:03:39]} Kh7 {[%emt 0:00:05]} 44. Qe4+ {[%emt 0:00:14] Ne1 Qa8 Nd3 Qxa5} 1/2-1/2

[Event "EYCC Open-U14 2019"]
[Site "Bratislava"]
[Date "2019.08.03"]
[Round "2.15"]
[White "Kirillov, Dmitry"]
[Black "Danaci, Ege"]
[Result "1-0"]
[ECO "B13"]
[WhiteElo "2244"]
[BlackElo "1976"]
[Annotator "NA"]
[PlyCount "83"]
[EventDate "2019.08.02"]
[EventType "swiss"]
[EventCountry "SVK"]
[SourceTitle "playchess.com"]
[Source "ChessBase"]
[SourceQuality "1"]
[TimeControl "40/5400+30:1800+30"]

1. e4 {[%emt 0:00:00]} c6 {[%emt 0:00:00]} 2. d4 {[%emt 0:00:00]} d5 {[%emt 0:00:19]} 3. exd5 {[%emt 0:00:00]} cxd5 {[%emt 0:00:12]} 4. Nf3 {[%emt 0:00:05]} Nc6 {[%emt 0:00:13]} 5. Ne5 {[%emt 0:01:12]} Nf6 {[%emt 0:16:53]} 6. Bb5 {[%emt 0:00:05]} Qb6 {[%emt 0:02:15]} 7. c4 {[%emt 0:08:30]} e6 {[%emt 0:24:23]} 8. O-O {[%emt 0:18:53]} dxc4 {[%emt 0:08:14]} 9. Qa4 {[%emt 0:09:03]} Bd7 {[%emt 0:02:48]} 10. Nxd7 {[%emt 0:02:35]} Nxd7 {[%emt 0:00:03]} 11. Nc3 {[%emt 0:00:15]} a6 {[%emt 0:09:11]} 12. d5 {[%emt 0:03:44]} Nce5 {[%emt 0:01:43]} 13. Re1 {[%emt 0:12:54]} Rc8 {[%emt 0:01:58]} 14. Bxd7+ {[%emt 0:04:44]} Nxd7 {[%emt 0:02:06]} 15. Bf4 {[%emt 0:03:13]} Bc5 {[%emt 0:05:18]} 16. Ne4 {[%emt 0:01:05]} Qb5 {[%emt 0:00:34]} 17. Qd1 {[%emt 0:02:58]} O-O {[%emt 0:11:23]} 18. a4 {[%emt 0:00:36]} Qb3 {[%emt 0:00:00]} 19. dxe6 {[%emt 0:07:07]} Qxd1 {[%emt 0:00:08]} 20. Raxd1 {[%emt 0:00:40]} fxe6 {[%emt 0:00:43]} 21. Rxd7 {[%emt 0:00:08]} Rxf4 {[%emt 0:00:12]} 22. Nxc5 {[%emt 0:02:27]} Rxc5 {[%emt 0:00:07]} 23. Rxe6 {[%emt 0:00:04]} Rcf5 {[%emt 0:03:03]} 24. f3 {[%emt 0:01:26]} b5 {[%emt 0:00:49]} 25. Rxa6 {[%emt 0:02:49]} b4 {[%emt 0:01:55]} 26. Rc6 {[%emt 0:00:22]} g5 {[%emt 0:03:01]} 27. Rc8+ {[%emt 0:02:33]} Rf8 {[%emt 0:00:14]} 28. Rcc7 {[%emt 0:00:05]} R8f5 {[%emt 0:05:33]} 29. Rg7+ {[%emt 0:01:05]} Kh8 {[%emt 0:00:24]} 30. Rxh7+ {[%emt 0:00:12]} Kg8 {[%emt 0:00:01]} 31. Rhd7 {[%emt 0:00:29]} b3 {[%emt 0:01:15]} 32. Rd8+ {[%emt 0:09:01]} Rf8 {[%emt 0:00:01]} 33. Rxf8+ {[%emt 0:00:07]} Kxf8 {[%emt 0:00:06]} 34. a5 {[%emt 0:00:19]} Rd4 {[%emt 0:00:17]} 35. a6 {[%emt 0:00:44]} Rd1+ {[%emt 0:01:23]} 36. Kf2 {[%emt 0:00:05]} Rd2+ {[%emt 0:00:36]} 37. Ke3 {[%emt 0:00:26]} Rxb2 {[%emt 0:00:18]} 38. a7 {[%emt 0:00:28]} Ra2 {[%emt 0:00:08]} 39. Rc8+ {[%emt 0:00:24]} Ke7 {[%emt 0:00:05]} 40. a8=Q {[%emt 0:00:00]} Rxa8 {[%emt 0:00:00]} 41. Rxa8 {[%emt 0:00:15]} Kd6 {[%emt 0:00:11]} 42. Ke4 {Kd5+} 1-0

[Event "EYCC Open-U14 2019"]
[Site "Bratislava"]
[Date "2019.08.03"]
[Round "2.16"]
[White "Schlegel, Igor"]
[Black "Rozen, Eytan"]
[Result "0-1"]
[ECO "B13"]
[WhiteElo "1968"]
[BlackElo "2260"]
[Annotator "NA"]
[PlyCount "162"]
[EventDate "2019.08.02"]
[EventType "swiss"]
[EventCountry "SVK"]
[SourceTitle "playchess.com"]
[Source "ChessBase"]
[SourceQuality "1"]
[TimeControl "40/5400+30:1800+30"]

1. e4 {[%emt 0:00:00]} c6 {[%emt 0:01:50]} 2. d4 {[%emt 0:00:00]} d5 {[%emt 0:00:06]} 3. exd5 {[%emt 0:00:00]} cxd5 {[%emt 0:00:08]} 4. c4 {[%emt 0:00:00]} Nf6 {[%emt 0:00:26]} 5. Nc3 {[%emt 0:00:00]} Nc6 {[%emt 0:00:50]} 6. Bg5 {[%emt 0:00:41]} e6 {[%emt 0:10:26]} 7. Nf3 {[%emt 0:03:49]} Bb4 {[%emt 0:01:49]} 8. cxd5 {[%emt 0:17:56]} exd5 {[%emt 0:01:15]} 9. Bb5 {[%emt 0:00:44]} Bxc3+ {[%emt 0:19:34]} 10. bxc3 {[%emt 0:01:19]} Qa5 {[%emt 0:01:11]} 11. Qb3 {[%emt 0:21:37]} Ne4 {[%emt 0:06:17]} 12. O-O {[%emt 0:00:44]} O-O {[%emt 0:02:38]} 13. Rfe1 {[%emt 0:14:00]} Bg4 {[%emt 0:18:57]} 14. Bxc6 {[%emt 0:10:42]} bxc6 {[%emt 0:00:29]} 15. Be7 {[%emt 0:00:10]} Rfe8 {[%emt 0:14:14]} 16. Ne5 {[%emt 0:02:12]} Be6 {[%emt 0:02:05]} 17. Bb4 {[%emt 0:01:09]} Qb5 {[%emt 0:03:27]} 18. a4 {[%emt 0:03:53]} Qa6 {[%emt 0:01:41]} 19. Rad1 {[%emt 0:03:34]} f6 {[%emt 0:02:14]} 20. Nd3 {[%emt 0:00:21]} Bf5 {[%emt 0:01:03]} 21. Qa2 {[%emt 0:06:34]} Nxc3 {[%emt 0:02:17]} 22. Bxc3 {[%emt 0:02:45]} Bxd3 {[%emt 0:00:02]} 23. Qd2 {[%emt 0:01:14]} Bg6 {[%emt 0:01:39]} 24. a5 {[%emt 0:00:27]} Qc4 {[%emt 0:00:58]} 25. Rxe8+ {[%emt 0:03:11]} Rxe8 {[%emt 0:00:06]} 26. Re1 {[%emt 0:00:10]} Rb8 {[%emt 0:00:32]} 27. Qf4 {[%emt 0:01:52]} Rf8 {[%emt 0:02:02]} 28. Bd2 {[%emt 0:02:01]} Qd3 {[%emt 0:02:52]} 29. Bb4 {[%emt 0:02:26]} Re8 {[%emt 0:02:17]} 30. h3 {[%emt 0:00:42]} Rxe1+ {[%emt 0:00:54]} 31. Bxe1 {[%emt 0:00:05]} Qb1 {[%emt 0:00:24]} 32. Qe3 {[%emt 0:00:09]} h6 {[%emt 0:00:26]} 33. Kh2 {[%emt 0:00:23]} Kh7 {[%emt 0:00:15]} 34. Qc3 {[%emt 0:01:19]} a6 {[%emt 0:00:52]} 35. Bd2 {[%emt 0:00:11]} Qb5 {[%emt 0:00:36]} 36. Bf4 {[%emt 0:00:26]} Qf1 {[%emt 0:00:31]} 37. Bg3 {[%emt 0:01:11]} Qc4 {[%emt 0:00:30]} 38. Qxc4 {[%emt 0:00:31]} dxc4 {[%emt 0:00:01]} 39. Bf4 {[%emt 0:00:19]} c3 {[%emt 0:00:37]} 40. Kg3 {[%emt 0:00:00]} Kg8 {[%emt 0:00:00]} 41. Kf3 {[%emt 0:00:31]} Kf7 {[%emt 0:00:14]} 42. Bd6 {[%emt 0:13:14]} Ke6 {[%emt 0:00:39]} 43. Bb4 {[%emt 0:00:05]} c2 {[%emt 0:00:31]} 44. Ba3 {[%emt 0:02:03]} Kd5 {[%emt 0:00:06]} 45. Ke3 {[%emt 0:00:02]} Kc4 {[%emt 0:00:13]} 46. Bc1 {[%emt 0:00:05]} Kc3 {[%emt 0:02:09]} 47. h4 {[%emt 0:02:59]} Bf5 {[%emt 0:02:58]} 48. f4 {[%emt 0:00:44]} h5 {[%emt 0:02:10]} 49. Ba3 {[%emt 0:01:07]} Be6 {[%emt 0:01:45]} 50. Bc1 {[%emt 0:01:45]} g6 {[%emt 0:01:01]} 51. g3 {[%emt 0:00:24]} Bf5 {[%emt 0:00:14]} 52. Ba3 {[%emt 0:00:34]} Kc4 {[%emt 0:00:04]} 53. Bc1 {[%emt 0:01:19]} Kb4 {[%emt 0:00:09]} 54. Bd2+ {[%emt 0:00:06]} Ka3 {[%emt 0:01:14]} 55. Bc1+ {[%emt 0:00:35]} Kb3 {[%emt 0:00:05]} 56. Ke2 {[%emt 0:01:27]} Be6 {[%emt 0:00:51]} 57. Kd3 {[%emt 0:02:48]} Bd5 {[%emt 0:00:41]} 58. Ke2 {[%emt 0:02:36]} Ka4 {[%emt 0:01:20]} 59. Bd2 {[%emt 0:00:10]} Bc4+ {[%emt 0:01:33]} 60. Ke3 {[%emt 0:00:32]} f5 {[%emt 0:01:28]} 61. Kf2 {[%emt 0:00:58]} Kb3 {[%emt 0:04:08]} 62. Bc1 {[%emt 0:00:20]} Bd3 {[%emt 0:00:53]} 63. Ke3 {[%emt 0:00:48]} Bb5 {[%emt 0:00:20]} 64. Kf2 {[%emt 0:01:05]} Bd3 {[%emt 0:03:38]} 65. Ke3 {[%emt 0:01:07]} Be4 {[%emt 0:00:16]} 66. Ke2 {[%emt 0:00:42]} Kb4 {[%emt 0:02:32]} 67. Bd2+ {[%emt 0:00:08]} Kc4 {[%emt 0:00:19]} 68. Ke3 {[%emt 0:02:21]} Kb5 {[%emt 0:00:53]} 69. Ke2 {[%emt 0:00:27]} c1=Q {[%emt 0:06:09]} 70. Bxc1 {[%emt 0:00:04]} Kxa5 {[%emt 0:00:05]} 71. Kd2 {[%emt 0:05:04]} Kb4 {[%emt 0:00:18]} 72. Bb2 {[%emt 0:00:09]} Kc4 {[%emt 0:00:58]} 73. Bc3 {[%emt 0:00:28]} Bd3 {[%emt 0:00:55]} 74. Ba1 {[%emt 0:00:17]} a5 {[%emt 0:00:12]} 75. Bc3 {[%emt 0:00:53]} a4 {[%emt 0:00:05]} 76. Bb2 {[%emt 0:00:11]} Kb3 {[%emt 0:00:43]} 77. Ba1 {[%emt 0:00:44]} Be4 {[%emt 0:00:19]} 78. Kd1 {[%emt 0:00:50]} Ka2 {[%emt 0:00:48]} 79. Bc3 {[%emt 0:00:11]} Kb1 {[%emt 0:00:09]} 80. Bb4 {[%emt 0:00:09]} Kb2 {[%emt 0:00:05]} 81. Kd2 {[%emt 0:00:14]} a3 {[%emt 0:00:06]} 0-1

[Event "EYCC Open-U14 2019"]
[Site "Bratislava"]
[Date "2019.08.03"]
[Round "2.17"]
[White "Papadiamandis, Elliot"]
[Black "Jares, Michal"]
[Result "1-0"]
[ECO "B33"]
[WhiteElo "2202"]
[BlackElo "1952"]
[Annotator "NA"]
[PlyCount "57"]
[EventDate "2019.08.02"]
[EventType "swiss"]
[EventCountry "SVK"]
[SourceTitle "playchess.com"]
[Source "ChessBase"]
[SourceQuality "1"]
[TimeControl "40/5400+30:1800+30"]

1. e4 {[%emt 0:00:00]} c5 {[%emt 0:00:00]} 2. Nf3 {[%emt 0:00:00]} Nc6 {[%emt 0:00:00]} 3. d4 {[%emt 0:00:08]} cxd4 {[%emt 0:00:00]} 4. Nxd4 {[%emt 0:00:10]} Nf6 {[%emt 0:00:20]} 5. Nc3 {[%emt 0:00:08]} e5 {[%emt 0:00:22]} 6. Ndb5 {[%emt 0:00:14]} d6 {[%emt 0:00:39]} 7. Bg5 {[%emt 0:00:20]} a6 {[%emt 0:00:42]} 8. Na3 {[%emt 0:00:25]} b5 {[%emt 0:00:57]} 9. Nd5 {[%emt 0:00:25]} Be7 {[%emt 0:01:03]} 10. Bxf6 {[%emt 0:00:16]} Bxf6 {[%emt 0:00:22]} 11. c4 {[%emt 0:01:05]} O-O {[%emt 0:11:21]} 12. cxb5 {[%emt 0:04:06]} Nd4 {[%emt 0:00:16]} 13. b6 {[%emt 0:02:24]} Bg5 {[%emt 0:04:59]} 14. Bc4 {[%emt 0:02:24]} Bb7 {[%emt 0:12:53]} 15. O-O {[%emt 0:02:54]} Rc8 {[%emt 0:07:31]} 16. Qg4 {[%emt 0:15:21]} Rxc4 {[%emt 0:16:22]} 17. Nxc4 {[%emt 0:02:06]} f5 {[%emt 0:00:40]} 18. Qd1 {[%emt 0:06:30]} fxe4 {[%emt 0:06:32]} 19. Nce3 {[%emt 0:02:01]} Qd7 {[%emt 0:05:58]} 20. Qh5 {[%emt 0:04:09]} Bf4 {[%emt 0:07:44]} 21. Rad1 {[%emt 0:10:55]} Bxd5 {[%emt 0:14:22]} 22. Nxd5 {[%emt 0:04:37]} Rf5 {[%emt 0:04:58]} 23. Qh3 {[%emt 0:03:00]} Ne2+ {[%emt 0:02:49]} 24. Kh1 {[%emt 0:00:07]} Kh8 {[%emt 0:00:35]} 25. Ne7 {[%emt 0:01:12]} Qxe7 {[%emt 0:00:33]} 26. Qxf5 {[%emt 0:00:14]} h6 {[%emt 0:00:28]} 27. Qg4 {[%emt 0:03:53]} Nd4 {[%emt 0:00:30]} 28. Rxd4 {[%emt 0:00:32]} exd4 {[%emt 0:00:20]} 29. Qxf4 {[%emt 0:00:11]} 1-0

[Event "EYCC Open-U14 2019"]
[Site "Bratislava"]
[Date "2019.08.03"]
[Round "2.18"]
[White "Weihrauch, Jakob"]
[Black "Titze, Leo"]
[Result "1-0"]
[ECO "B38"]
[WhiteElo "2201"]
[BlackElo "1919"]
[Annotator "NA"]
[PlyCount "83"]
[EventDate "2019.08.02"]
[EventType "swiss"]
[EventCountry "SVK"]
[SourceTitle "playchess.com"]
[Source "ChessBase"]
[SourceQuality "1"]
[TimeControl "40/5400+30:1800+30"]

1. e4 {[%emt 0:00:00]} c5 {[%emt 0:00:00]} 2. Nf3 {[%emt 0:00:00]} Nc6 {[%emt 0:00:00]} 3. d4 {[%emt 0:00:00]} cxd4 {[%emt 0:00:00]} 4. Nxd4 {[%emt 0:00:00]} g6 {[%emt 0:00:00]} 5. c4 {[%emt 0:00:10]} Bg7 {[%emt 0:00:00]} 6. Be3 {[%emt 0:00:07]} Nf6 {[%emt 0:00:27]} 7. Nc3 {[%emt 0:00:11]} d6 {[%emt 0:00:09]} 8. Be2 {[%emt 0:00:12]} O-O {[%emt 0:00:10]} 9. O-O {[%emt 0:00:11]} Bd7 {[%emt 0:00:06]} 10. Qd2 {[%emt 0:00:10]} Nxd4 {[%emt 0:00:13]} 11. Bxd4 {[%emt 0:00:02]} Bc6 {[%emt 0:00:12]} 12. f3 {[%emt 0:00:05]} Nd7 {[%emt 0:00:06]} 13. Be3 {[%emt 0:00:07]} a5 {[%emt 0:01:01]} 14. b3 {[%emt 0:00:09]} Nc5 {[%emt 0:00:18]} 15. Rab1 {[%emt 0:00:30]} Qb6 {[%emt 0:01:12]} 16. Rfc1 {[%emt 0:00:22]} Rfc8 {[%emt 0:00:53]} 17. Rc2 {[%emt 0:00:25]} Qd8 {[%emt 0:01:14]} 18. Bf1 {[%emt 0:01:33]} h5 {[%emt 0:01:18]} 19. Kh1 {[%emt 0:00:27]} Kh7 {[%emt 0:00:33]} 20. a3 {[%emt 0:00:35]} Qh8 {[%emt 0:00:55]} 21. b4 {[%emt 0:02:45]} axb4 {[%emt 0:03:58]} 22. axb4 {[%emt 0:00:17]} Na4 {[%emt 0:02:48]} 23. Ne2 {[%emt 0:01:11]} b5 {[%emt 0:07:24]} 24. Nd4 {[%emt 0:06:43]} bxc4 {[%emt 0:00:43]} 25. Bxc4 {[%emt 0:02:01]} Bd7 {[%emt 0:01:06]} 26. Bxf7 {[%emt 0:06:03]} Rxc2 {[%emt 0:00:45]} 27. Nxc2 {[%emt 0:01:21]} Nc3 {[%emt 0:00:42]} 28. Rg1 {[%emt 0:03:16]} Nb5 {[%emt 0:02:28]} 29. Qd5 {[%emt 0:10:37]} Bf6 {[%emt 0:04:23]} 30. f4 {[%emt 0:08:58]} Rc8 {[%emt 0:08:36]} 31. f5 {[%emt 0:03:25]} g5 {[%emt 0:05:15]} 32. Bg6+ {[%emt 0:09:26]} Kh6 {[%emt 0:00:08]} 33. Qd2 {[%emt 0:00:32]} h4 {[%emt 0:02:31]} 34. Ne1 {[%emt 0:04:58]} Nc3 {[%emt 0:01:48]} 35. e5 {[%emt 0:02:34]} Ne4 {[%emt 0:02:24]} 36. Qd4 {[%emt 0:03:52]} Bc6 {[%emt 0:05:13]} 37. exf6 {[%emt 0:00:42]} exf6 {[%emt 0:00:08]} 38. h3 {[%emt 0:07:27]} Qg8 {[%emt 0:03:26]} 39. Nf3 {[%emt 0:03:21]} Ng3+ {[%emt 0:01:48]} 40. Kh2 {[%emt 0:00:00]} Bxf3 {[%emt 0:00:00]} 41. Qxf6 {[%emt 0:01:02]} Ne4 {[%emt 0:03:43]} 42. Bxg5+ {[%emt 0:00:16]} 1-0

[Event "EYCC Open-U14 2019"]
[Site "Bratislava"]
[Date "2019.08.03"]
[Round "2.19"]
[White "Vaupot, Luka"]
[Black "Bochnicka, Vladimir"]
[Result "1/2-1/2"]
[ECO "E63"]
[WhiteElo "1939"]
[BlackElo "2169"]
[Annotator "NA"]
[PlyCount "73"]
[EventDate "2019.08.02"]
[EventType "swiss"]
[EventCountry "SVK"]
[SourceTitle "playchess.com"]
[Source "ChessBase"]
[SourceQuality "1"]
[TimeControl "40/5400+30:1800+30"]

1. d4 {[%emt 0:00:00]} Nf6 {[%emt 0:00:00]} 2. Nf3 {[%emt 0:00:00]} g6 {[%emt 0:00:00]} 3. c4 {[%emt 0:00:00]} Bg7 {[%emt 0:00:00]} 4. Nc3 {[%emt 0:01:11]} O-O {[%emt 0:00:00]} 5. g3 {[%emt 0:00:07]} d6 {[%emt 0:00:05]} 6. Bg2 Nc6 {[%emt 0:00:09]} 7. O-O {[%emt 0:00:29]} a6 {[%emt 0:00:12]} 8. Qc2 {[%emt 0:26:28]} Bg4 {[%emt 0:02:33]} 9. Rd1 {[%emt 0:01:31]} Qc8 {[%emt 0:01:46]} 10. Be3 {[%emt 0:21:32]} Bf5 {[%emt 0:21:59]} 11. Qa4 {[%emt 0:05:54]} Nd7 {[%emt 0:14:10]} 12. Nd5 {[%emt 0:14:18]} e6 {[%emt 0:07:28]} 13. Qxc6 {[%emt 0:04:42]} exd5 {[%emt 0:03:02]} 14. Qxd5 {[%emt 0:00:53]} Nb6 {[%emt 0:02:48]} 15. Qa5 {[%emt 0:00:02]} Nxc4 {[%emt 0:00:22]} 16. Qc3 {[%emt 0:00:02]} d5 {[%emt 0:07:34]} 17. b3 {[%emt 0:05:36]} Nxe3 {[%emt 0:02:32]} 18. Qxe3 {[%emt 0:00:02]} Re8 {[%emt 0:00:14]} 19. Qd2 {[%emt 0:00:02]} c6 {[%emt 0:00:40]} 20. Rac1 {[%emt 0:00:56]} Qe6 {[%emt 0:01:11]} 21. e3 {[%emt 0:00:38]} Bg4 {[%emt 0:04:50]} 22. Rf1 {[%emt 0:03:03]} Bf6 {[%emt 0:05:46]} 23. Ne1 {[%emt 0:01:31]} Bf5 {[%emt 0:01:23]} 24. Nd3 {[%emt 0:01:09]} Bxd3 {[%emt 0:00:51]} 25. Qxd3 {[%emt 0:00:01]} Re7 {[%emt 0:01:12]} 26. Rc2 {[%emt 0:04:26]} Qd6 {[%emt 0:00:31]} 27. Rfc1 {[%emt 0:00:48]} Rae8 {[%emt 0:00:37]} 28. Rc5 {[%emt 0:00:27]} Rc7 {[%emt 0:02:48]} 29. Qd2 {[%emt 0:01:44]} Bg5 {[%emt 0:04:15]} 30. b4 {[%emt 0:00:56]} Rce7 {[%emt 0:00:58]} 31. Kh1 {[%emt 0:03:08]} Qf6 {[%emt 0:01:40]} 32. a4 {[%emt 0:00:49]} Kf8 {[%emt 0:01:54]} 33. b5 {[%emt 0:00:37]} axb5 {[%emt 0:01:33]} 34. axb5 {[%emt 0:00:02]} Re6 {[%emt 0:00:34]} 35. bxc6 {[%emt 0:00:39]} bxc6 {[%emt 0:00:59]} 36. Qc2 {[%emt 0:00:37]} Bxe3 {[%emt 0:05:02]} 37. fxe3 {[%emt 0:00:05]} 1/2-1/2

[Event "EYCC Open-U14 2019"]
[Site "Bratislava"]
[Date "2019.08.03"]
[Round "2.20"]
[White "Sinitsyn, Anton"]
[Black "Tadic, Stefan"]
[Result "0-1"]
[ECO "A36"]
[WhiteElo "1847"]
[BlackElo "2262"]
[Annotator "NA"]
[PlyCount "68"]
[EventDate "2019.08.02"]
[EventType "swiss"]
[EventCountry "SVK"]
[SourceTitle "playchess.com"]
[Source "ChessBase"]
[SourceQuality "1"]
[TimeControl "40/5400+30:1800+30"]

1. c4 {[%emt 0:00:00]} c5 {[%emt 0:00:00]} 2. Nc3 {[%emt 0:00:00]} Nc6 {[%emt 0:00:00]} 3. g3 {[%emt 0:00:00]} g6 {[%emt 0:00:00]} 4. Bg2 {[%emt 0:00:00]} Bg7 {[%emt 0:00:02]} 5. e3 {[%emt 0:00:53]} e5 {[%emt 0:01:27]} 6. Nge2 {[%emt 0:00:21]} d6 {[%emt 0:00:54]} 7. d3 {[%emt 0:02:29]} Nge7 {[%emt 0:00:25]} 8. O-O {[%emt 0:01:23]} O-O {[%emt 0:00:13]} 9. e4 {[%emt 0:05:49]} f5 {[%emt 0:05:05]} 10. f4 {[%emt 0:06:45]} fxe4 {[%emt 0:11:48]} 11. Nxe4 {[%emt 0:04:19]} Nf5 {[%emt 0:02:21]} 12. fxe5 {[%emt 0:09:32]} Nxe5 {[%emt 0:13:15]} 13. Bg5 {[%emt 0:07:13]} Qd7 {[%emt 0:11:01]} 14. N2c3 {[%emt 0:07:04]} h6 {[%emt 0:00:31]} 15. Bf4 {[%emt 0:01:55]} g5 {[%emt 0:05:13]} 16. Bxe5 {[%emt 0:04:05]} Bxe5 {[%emt 0:00:07]} 17. Qh5 {[%emt 0:09:17]} Qg7 {[%emt 0:05:27]} 18. Rae1 {[%emt 0:12:07]} Bd7 {[%emt 0:03:21]} 19. Qe2 {[%emt 0:09:10]} Bd4+ {[%emt 0:07:15]} 20. Kh1 {[%emt 0:00:44]} Ne3 {[%emt 0:00:12]} 21. Rxf8+ {[%emt 0:04:01]} Rxf8 {[%emt 0:00:19]} 22. h3 {[%emt 0:03:37]} g4 {[%emt 0:02:48]} 23. h4 {[%emt 0:01:02]} Bc6 {[%emt 0:07:12]} 24. Nd1 {[%emt 0:05:15]} Nf5 {[%emt 0:06:55]} 25. Kh2 {[%emt 0:01:37]} Be5 {[%emt 0:00:05]} 26. Ndf2 {[%emt 0:00:45]} h5 {[%emt 0:00:49]} 27. Bh1 {[%emt 0:00:53]} Nxh4 {[%emt 0:01:25]} 28. Rg1 {[%emt 0:01:34]} Nf3+ {[%emt 0:00:49]} 29. Bxf3 {[%emt 0:00:13]} Rxf3 {[%emt 0:00:19]} 30. Kg2 {[%emt 0:01:25]} Rxg3+ {[%emt 0:01:24]} 31. Kf1 {[%emt 0:00:19]} Rxg1+ {[%emt 0:00:03]} 32. Kxg1 {[%emt 0:00:10]} Qh6 {[%emt 0:01:03]} 33. Nd1 {[%emt 0:01:46]} Qf4 {[%emt 0:00:19]} 34. Ndc3 {[%emt 0:00:34]} h4 {[%emt 0:01:08]} 0-1

[Event "EYCC Open-U14 2019"]
[Site "Bratislava"]
[Date "2019.08.04"]
[Round "3.1"]
[White "Kostolansky, Sebastian Lukas"]
[Black "Yaniv, Yuval"]
[Result "1-0"]
[ECO "B50"]
[WhiteElo "2406"]
[BlackElo "2135"]
[Annotator "NA"]
[PlyCount "43"]
[EventDate "2019.08.02"]
[EventType "swiss"]
[EventCountry "SVK"]
[SourceTitle "playchess.com"]
[Source "ChessBase"]
[SourceQuality "1"]
[TimeControl "40/5400+30:1800+30"]

1. e4 {[%emt 0:00:00]} c5 {[%emt 0:00:00]} 2. Nf3 {[%emt 0:00:00]} d6 {[%emt 0:00:28]} 3. c3 {[%emt 0:04:21]} Nf6 {[%emt 0:01:01]} 4. Bd3 {[%emt 0:05:23]} d5 {[%emt 0:07:30]} 5. e5 {[%emt 0:01:43]} Ne4 {[%emt 0:04:42]} 6. Bb5+ {[%emt 0:04:13]} Bd7 {[%emt 0:05:14]} 7. Bxd7+ {[%emt 0:01:11]} Qxd7 {[%emt 0:00:06]} 8. d3 {[%emt 0:00:20]} f5 {[%emt 0:11:06]} 9. dxe4 {[%emt 0:02:18]} fxe4 {[%emt 0:01:39]} 10. Ng5 {[%emt 0:00:19]} g6 {[%emt 0:02:21]} 11. e6 {[%emt 0:01:14]} Qc6 {[%emt 0:00:24]} 12. Qg4 {[%emt 0:00:14]} Bh6 {[%emt 0:01:21]} 13. O-O {[%emt 0:04:58]} Bxg5 {[%emt 0:01:26]} 14. Bxg5 {[%emt 0:00:14]} h5 {[%emt 0:00:55]} 15. Qh3 {[%emt 0:03:55]} Rf8 {[%emt 0:01:49]} 16. c4 {[%emt 0:05:57]} d4 {[%emt 0:02:15]} 17. Nd2 {[%emt 0:01:38]} Rf5 {[%emt 0:06:13]} 18. Qh4 {[%emt 0:00:59]} Re5 {[%emt 0:02:17]} 19. Bxe7 {[%emt 0:05:43]} Rxe6 {[%emt 0:04:30]} 20. Bg5 {[%emt 0:00:09]} e3 {[%emt 0:02:04]} 21. fxe3 {[%emt 0:00:13]} dxe3 {[%emt 0:00:12]} 22. Qf4 {[%emt 0:00:53]} 1-0